bitfinex/quotes_ETHUSD_20250827
["timestamp","ask_amount","ask_price","bid_price","bid_amount"]
[1756337697251,0.4033,4523.6,4523.4,5.96471943]
[1756337697573,0.4033,4523.6,4523.4,2.21071943]
[1756337697774,0.862,4523.6,4523.4,2.21071943]
[1756337698075,0.862,4523.6,4523.4,2.21072644]
[1756337698581,0.862,4523.6,4523.5,2.21067757]
[1756337698779,0.862,4523.6,4523.3,5.96873568]
[1756337699087,0.4033,4523.6,4523.5,2.21067757]
[1756337699880,0.1104,4523.6,4523.5,2.21067757]
[1756337700073,0.001,4524.1,4523.9,2.21044458]
[1756337700269,0.001,4524.1,4523.8,2.21052536]
[1756337700469,0.2929,4523.7,4523.6,2.21061675]
[1756337701054,0.1104,4523.9,4523.8,2.21053096]
[1756337701455,0.4033,4523.9,4523.8,2.21053096]
[1756337701755,0.4033,4523.9,4523.8,2.96023096]
[1756337701756,0.1104,4523.9,4523.8,2.96023096]
[1756337701951,0.1104,4523.9,4523.8,7.50523096]
[1756337702175,0.001,4524.1,4524.0,2.21043324]
[1756337704403,0.2939,4524.1,4524.0,2.21043324]
[1756337705097,0.2939,4524.1,4523.8,3.8634]
[1756337705295,0.2939,4524.1,4523.8,2.21053091]
[1756337705495,0.1104,4523.9,4523.8,2.21053091]
[1756337705680,0.862,4523.9,4523.7,2.2105711]
[1756337706068,0.4033,4523.9,4523.5,6.25756806]
[1756337706274,0.4033,4523.9,4523.8,2.21053096]
[1756337706461,0.1104,4523.9,4523.8,2.21053096]
[1756337706662,0.1104,4523.9,4523.8,2.51133096]
[1756337707159,0.4033,4523.9,4523.6,2.21061267]
[1756337707357,0.4587,4523.8,4523.5,3.753]
[1756337707585,0.4033,4523.6,4523.3,0.004]
[1756337707792,0.862,4523.6,4523.3,0.004]
[1756337707970,2.21072644,4523.4,4523.3,0.004]
[1756337708368,2.96232644,4523.4,4523.3,0.004]
[1756337709999,6.71532644,4523.4,4523.3,0.004]
[1756337711398,4.0449,4523.4,4523.3,0.004]
[1756337712912,2.21037929,4524.2,4523.3,0.3048]
[1756337713093,0.2929,4523.4,4523.3,0.004]
[1756337714680,4.0449,4523.4,4523.3,0.004]
[1756337714883,6.25562644,4523.4,4523.3,0.004]
[1756337715111,6.71432644,4523.4,4523.3,0.004]
[1756337715412,4.5036,4523.4,4523.3,0.004]
[1756337715589,4.0449,4523.4,4523.3,0.004]
[1756337716312,2.2106808,4523.5,4523.3,0.004]
[1756337716612,0.001,4524.1,4523.3,0.004]
[1756337716613,0.2931,4523.4,4523.3,0.004]
[1756337716778,2.93812644,4523.4,4523.3,0.004]
[1756337718010,2.50382644,4523.4,4523.3,0.004]
[1756337718213,4.0451,4523.4,4523.3,0.004]
[1756337718400,6.25582644,4523.4,4523.3,0.004]
[1756337718587,0.2931,4523.4,4523.3,0.004]
[1756337718788,4.0451,4523.4,4523.3,0.004]
[1756337719223,6.25582644,4523.4,4523.3,0.004]
[1756337719609,6.69012644,4523.4,4523.3,0.004]
[1756337719815,6.25582644,4523.4,4523.3,0.004]
[1756337721119,2.50382644,4523.4,4523.3,0.004]
[1756337721352,1.7,4523.5,4523.3,0.3084]
[1756337721623,3.752,4523.4,4523.3,0.3084]
[1756337722000,5.96272644,4523.4,4523.3,0.004]
[1756337722224,6.25582644,4523.4,4523.3,0.004]
[1756337722933,6.36622644,4523.4,4523.3,0.004]
[1756337723134,3.8624,4523.4,4523.3,0.004]
[1756337723526,6.07312644,4523.4,4523.3,0.004]
[1756337724913,6.36622644,4523.4,4523.3,0.004]
[1756337727846,3.8624,4523.4,4523.3,0.004]
[1756337728051,0.1104,4523.4,4523.3,0.3084]
[1756337728343,0.001,4524.1,4523.5,2.21063922]
[1756337728516,0.001,4524.1,4523.7,5.768717]
[1756337728840,0.001,4524.1,4524.0,0.3044]
[1756337729259,0.1114,4524.1,4524.0,5.96023324]
[1756337729548,0.001,4524.1,4524.0,3.7498]
[1756337729915,0.001,4524.1,4524.0,5.96023324]
[1756337732434,0.001,4524.1,4524.0,6.75223324]
[1756337732760,0.001,4524.1,4524.0,6.86263324]
[1756337736148,0.001,4524.1,4524.0,10.61263324]
[1756337739365,0.001,4524.1,4524.0,10.70122324]
[1756337748088,0.001,4524.6,4524.5,2.21018897]
[1756337748415,0.001,4524.6,4524.5,6.06858897]
[1756337748624,0.001,4524.6,4524.5,6.82328897]
[1756337748780,0.001,4524.6,4524.5,6.91186797]
[1756337749485,0.001,4524.6,4524.5,10.59346797]
[1756337752938,0.02,4524.8,4524.7,2.21009127]
[1756337753100,0.02,4524.8,4524.7,6.77219218]
[1756337753432,0.02,4524.8,4524.7,7.50479127]
[1756337753797,0.02,4524.8,4524.7,7.59336027]
[1756337753998,0.001,4524.9,4524.8,3.00204243]
[1756337754231,0.001,4524.9,4524.8,12.21545943]
[1756337754419,0.001,4524.9,4524.8,12.52545943]
[1756337755636,0.001,4524.9,4524.8,11.77075943]
[1756337755801,0.2891,4524.9,4524.8,11.77075943]
[1756337756134,0.2891,4524.9,4524.8,10.97875943]
[1756337756300,0.2891,4524.9,4524.8,7.97875943]
[1756337756505,0.2891,4524.9,4524.8,12.51775943]
[1756337757339,0.7206,4524.9,4524.8,3.0]
[1756337757839,0.7206,4524.9,4524.7,0.088569]
[1756337758135,0.4315,4524.8,4524.7,0.088569]
[1756337758340,0.4315,4524.8,4524.5,3.747]
[1756337758638,0.2881,4524.6,4524.5,9.38868897]
[1756337759636,0.2881,4524.6,4524.5,7.1785]
[1756337759841,0.7196,4524.6,4524.5,7.1785]
[1756337760241,0.2881,4524.6,4524.5,0.4315]
[1756337760443,0.7196,4524.6,4523.8,0.02]
[1756337760950,2.21040119,4524.1,4523.8,0.02]
[1756337761100,0.7196,4524.6,4523.8,0.02]
[1756337761101,2.21043985,4524.0,4523.8,0.02]
[1756337761306,2.4985821,4523.9,4523.8,0.02]
[1756337761744,2.9300821,4523.9,4523.8,0.02]
[1756337763145,0.7196,4523.9,4523.8,0.02]
[1756337764738,2.9300821,4523.9,4523.8,0.02]
[1756337765038,0.7196,4523.9,4523.8,0.02]
[1756337765536,2.9300821,4523.9,4523.8,0.02]
[1756337765714,2.9300821,4523.9,4523.8,0.024]
[1756337765915,0.7196,4523.9,4523.8,0.024]
[1756337767141,2.9300821,4523.9,4523.8,0.024]
[1756337769246,6.6770821,4523.9,4523.8,0.024]
[1756337770314,6.7874821,4523.9,4523.8,0.024]
[1756337770663,9.8761211,4523.9,4523.8,0.024]
[1756337772246,2.21057983,4523.7,4523.6,0.004]
[1756337772445,0.792,4523.7,4523.3,0.004]
[1756337772624,2.60922644,4523.4,4523.3,0.004]
[1756337772826,16.50522644,4523.4,4523.3,0.004]
[1756337773144,16.93672644,4523.4,4523.3,1e-08]
[1756337773326,17.02538744,4523.4,4523.3,1e-08]
[1756337776142,2.21097083,4522.9,4522.6,0.004]
[1756337776322,7.65797083,4522.9,4522.6,0.004]
[1756337776526,11.48797083,4522.9,4522.6,0.004]
[1756337776930,11.83404601,4522.9,4522.6,0.004]
[1756337777117,11.72364601,4522.9,4522.8,1e-08]
[1756337777317,11.72364601,4522.9,4521.9,0.004]
[1756337777318,2.2110686,4522.7,4522.5,1e-08]
[1756337777557,7.539,4522.6,4522.5,1e-08]
[1756337777722,8.2825,4522.6,4522.5,1e-08]
[1756337778054,10.49361749,4522.6,4522.5,1e-08]
[1756337778222,10.58229849,4522.6,4522.5,1e-08]
[1756337778958,0.792,4522.4,4520.3,0.11539328]
[1756337779266,2.21194894,4520.9,4520.2,0.4385]
[1756337779422,2.21194894,4520.9,4519.8,0.4585]
[1756337779423,7.96504894,4520.9,4519.8,0.4585]
[1756337779623,8.40344894,4520.9,4519.8,0.4585]
[1756337779944,8.86194894,4520.9,4519.8,0.4585]
[1756337780263,8.42354894,4520.9,4520.0,0.4385]
[1756337781362,8.42354894,4520.9,4520.3,0.4385]
[1756337781865,8.42354894,4520.9,4519.8,0.02]
[1756337781866,11.86194894,4520.9,4520.8,1e-08]
[1756337782224,12.43951881,4520.9,4520.8,1e-08]
[1756337782636,13.23151881,4520.9,4520.8,1e-08]
[1756337782860,13.00019934,4520.9,4520.8,1e-08]
[1756337785662,13.16702545,4520.9,4520.8,1e-08]
[1756337786977,13.27742545,4520.9,4520.8,1e-08]
[1756337788467,0.792,4520.7,4520.3,1e-08]
[1756337788668,2.32259361,4520.4,4520.3,1e-08]
[1756337788877,9.37569361,4520.4,4520.3,1e-08]
[1756337789046,9.81409361,4520.4,4520.3,1e-08]
[1756337789448,10.16038789,4520.4,4520.3,1e-08]
[1756337789696,6.85088789,4520.4,4520.3,1e-08]
[1756337789869,10.16048789,4520.4,4520.3,1e-08]
[1756337790252,10.59888789,4520.4,4520.3,1e-08]
[1756337790584,10.25259361,4520.4,4520.3,1e-08]
[1756337792714,11.04459361,4520.4,4520.3,1e-08]
[1756337792865,0.792,4520.2,4519.8,1e-08]
[1756337793058,2.32283832,4519.9,4519.8,1e-08]
[1756337793291,11.07893832,4519.9,4519.8,1e-08]
[1756337793602,11.97583832,4519.9,4519.8,1e-08]
[1756337794372,17.97643832,4519.9,4519.8,1e-08]
[1756337794570,18.32278264,4519.9,4519.8,1e-08]
[1756337797413,18.32278264,4519.9,4518.8,0.02]
[1756337797414,6.00492792,4518.9,4518.8,1e-08]
[1756337797750,7.70692792,4518.9,4518.8,1e-08]
[1756337797902,11.76102792,4518.9,4518.8,1e-08]
[1756337798242,8.45052792,4518.9,4518.8,1e-08]
[1756337798425,12.19952792,4518.9,4518.8,1e-08]
[1756337798831,12.63792792,4518.9,4518.8,1e-08]
[1756337799409,14.96892792,4518.9,4518.8,1e-08]
[1756337801151,15.31537113,4518.9,4518.8,1e-08]
[1756337801518,2.331,4518.5,4517.8,1e-08]
[1756337801842,2.21341773,4517.9,4517.8,1e-08]
[1756337802045,7.66541773,4517.9,4517.8,1e-08]
[1756337802442,8.31699126,4517.9,4517.8,1e-08]
[1756337802641,4.26189126,4517.9,4517.8,0.75060001]
[1756337802959,8.01189126,4517.9,4517.8,0.31210001]
[1756337803164,8.31699126,4517.9,4517.8,1e-08]
[1756337803458,8.01189126,4517.9,4517.8,1e-08]
[1756337803868,4.26189126,4517.9,4517.8,0.75060001]
[1756337804074,8.01189126,4517.9,4517.8,0.75060001]
[1756337804664,8.12229126,4517.9,4517.8,0.75060001]
[1756337805041,2.21390776,4516.9,4515.8,0.1355139]
[1756337805239,7.77630776,4516.9,4515.8,0.1355139]
[1756337805477,7.77630776,4516.9,4516.8,0.3321]
[1756337805634,7.77630776,4516.9,4516.8,0.7706]
[1756337808693,7.98063865,4516.9,4516.8,0.7706]
[1756337810667,4.23063865,4516.9,4516.8,0.7706]
[1756337810870,7.98163865,4516.9,4516.8,0.7706]
[1756337813000,8.28673865,4516.9,4516.8,0.02]
[1756337813189,11.28673865,4516.9,4516.8,0.02]
[1756337813390,18.78327504,4516.9,4516.8,0.00185945]
[1756337813902,14.72717504,4516.9,4516.8,0.30685945]
[1756337814100,18.47817504,4516.9,4516.8,0.30685945]
[1756337814311,18.47817504,4516.9,4516.8,0.00185945]
[1756337814516,18.47817504,4516.9,4516.8,0.30685945]
[1756337814692,14.72717504,4516.9,4516.8,0.30685945]
[1756337814890,14.72717504,4516.9,4516.8,0.77725945]
[1756337815199,18.47817504,4516.9,4516.8,0.77725945]
[1756337816514,18.47841539,4516.9,4516.8,0.77725945]
[1756337817310,18.47841539,4516.9,4516.8,0.30685945]
[1756337817486,18.47841539,4516.9,4516.8,0.77725945]
[1756337818905,7.981879,4516.9,4516.8,0.77725945]
[1756337820189,7.981879,4516.9,4516.8,0.00185945]
[1756337820826,4.230879,4516.9,4516.8,0.78125945]
[1756337821123,7.981879,4516.9,4516.8,0.78125945]
[1756337821297,7.981879,4516.9,4516.8,0.00585945]
[1756337821629,7.981879,4516.9,4516.8,0.78125945]
[1756337822325,4.230879,4516.9,4516.8,0.78125945]
[1756337822550,7.981879,4516.9,4516.8,0.78125945]
[1756337823436,5.76797124,4516.9,4516.8,0.78125945]
[1756337823747,5.76797124,4516.9,4516.8,0.98832515]
[1756337824353,7.981879,4516.9,4516.8,0.51792515]
[1756337824516,7.981879,4516.9,4516.8,0.00585945]
[1756337825049,8.286979,4516.9,4516.8,0.00585945]
[1756337825643,8.2879,4516.9,4516.8,0.00585945]
[1756337826214,8.28800176,4516.9,4516.8,0.00585945]
[1756337826828,7.98290176,4516.9,4516.8,0.00585945]
[1756337827026,4.23190176,4516.9,4516.8,0.31085945]
[1756337827247,7.98290176,4516.9,4516.8,0.98876656]
[1756337827640,7.98290176,4516.9,4516.8,0.31085945]
[1756337827951,7.98290176,4516.9,4516.8,0.00585945]
[1756337828151,7.98290176,4516.9,4516.8,0.31085945]
[1756337828345,7.98290176,4516.9,4516.8,0.78125945]
[1756337828857,4.23190176,4516.9,4516.8,0.98880583]
[1756337829044,7.98290176,4516.9,4516.8,0.98880583]
[1756337829756,7.98290176,4516.9,4516.8,0.31085945]
[1756337830525,4.23190176,4516.9,4516.8,0.78125945]
[1756337830854,7.98290176,4516.9,4516.8,0.98888955]
[1756337831622,4.23190176,4516.9,4516.8,0.98888955]
[1756337831819,7.98290176,4516.9,4516.8,0.98888955]
[1756337832443,4.23190176,4516.9,4516.8,0.98888955]
[1756337832857,7.98290176,4516.9,4516.8,0.98888955]
[1756337833238,7.98290176,4516.9,4516.8,0.78125945]
[1756337833972,7.98290176,4516.9,4516.8,0.00585945]
[1756337834132,7.98290176,4516.9,4516.8,1e-08]
[1756337834133,11.62620176,4516.9,4516.8,1e-08]
[1756337835646,7.87520176,4516.9,4516.8,1e-08]
[1756337835854,11.62648476,4516.9,4516.8,1e-08]
[1756337836169,2.21415286,4516.4,4516.3,1e-08]
[1756337836332,9.17102971,4516.4,4516.3,1e-08]
[1756337836533,9.92472971,4516.4,4516.3,1e-08]
[1756337837447,9.47612971,4516.4,4516.3,1e-08]
[1756337838235,9.92862971,4516.4,4516.3,1e-08]
[1756337839036,5.42002971,4516.4,4516.3,0.30530001]
[1756337839333,0.001,4516.9,4516.3,0.76600001]
[1756337839532,0.001,4516.9,4516.7,0.792]
[1756337839732,0.95,4517.4,4516.9,2.21386062]
[1756337839946,0.95,4517.4,4517.3,0.3053]
[1756337840148,3.751,4517.4,4517.3,0.766]
[1756337840356,3.751,4517.4,4517.3,2.97971173]
[1756337840761,3.751,4517.4,4517.3,0.766]
[1756337841370,3.751,4517.4,4517.3,2.97971173]
[1756337841772,1.724,4517.8,4517.4,2.2136597]
[1756337841941,3.751,4517.7,4517.4,0.4607]
[1756337842266,1.724,4517.8,4517.6,0.3053]
[1756337842467,3.751,4517.7,4517.6,0.3053]
[1756337843155,3.751,4517.7,4517.6,0.766]
[1756337843468,1.724,4517.8,4517.6,0.766]
[1756337843769,1.724,4517.8,4517.7,2.21351572]
[1756337843976,5.475,4517.8,4517.7,0.766]
[1756337844298,5.475,4517.8,4516.7,0.792]
[1756337844299,3.0,4517.7,4516.3,1e-08]
[1756337844438,2.21415286,4516.4,4516.3,1e-08]
[1756337844768,7.68215286,4516.4,4516.3,1e-08]
[1756337844971,7.79255286,4516.4,4516.3,1e-08]
[1756337845177,7.79255286,4516.4,4516.3,0.30530001]
[1756337845682,5.5784,4516.4,4516.3,0.76600001]
[1756337845851,1.703,4516.4,4516.3,0.76600001]
[1756337846043,5.5784,4516.4,4516.3,0.76600001]
[1756337846240,5.5784,4516.4,4516.3,1e-08]
[1756337846440,8.10305286,4516.4,4516.3,1e-08]
[1756337846647,8.55555286,4516.4,4516.3,1e-08]
[1756337847149,11.55555286,4516.4,4516.3,1e-08]
[1756337847675,7.33805286,4516.4,4516.3,1e-08]
[1756337847849,10.79255286,4516.4,4516.3,1e-08]
[1756337848041,7.02755286,4516.4,4516.3,1e-08]
[1756337848249,4.02755286,4516.4,4516.3,0.30530001]
[1756337848593,7.79355286,4516.4,4516.3,0.76600001]
[1756337848745,7.79355286,4516.4,4516.3,0.30530001]
[1756337849139,7.79455286,4516.4,4516.3,0.30530001]
[1756337850239,4.02755286,4516.4,4516.3,0.30530001]
[1756337850485,4.02755286,4516.4,4516.3,0.76600001]
[1756337850486,7.79255286,4516.4,4516.3,0.76600001]
[1756337851256,7.79255286,4516.4,4516.3,0.30530001]
[1756337852175,7.79255286,4516.4,4516.3,0.76600001]
[1756337852361,1.8134,4516.4,4516.3,0.76600001]
[1756337852550,5.5774,4516.4,4516.3,0.76600001]
[1756337853272,1.8134,4516.4,4516.3,0.76600001]
[1756337853649,5.063,4516.4,4516.3,3.7722019]
[1756337853850,0.1104,4516.7,4516.3,3.7722019]
[1756337854072,0.1104,4516.7,4516.5,2.21406664]
[1756337854267,3.765,4516.6,4516.5,2.21406664]
[1756337854469,3.765,4516.6,4516.5,2.98006664]
[1756337854683,3.765,4516.6,4516.5,0.766]
[1756337854885,3.764,4516.6,4516.5,2.98010384]
[1756337855785,3.764,4516.6,4516.5,0.766]
[1756337856154,3.763,4516.6,4516.5,0.766]
[1756337856354,2.21414301,4516.5,4516.3,1e-08]
[1756337856672,3.763,4516.6,4516.3,1e-08]
[1756337856673,4.22765286,4516.4,4516.3,1e-08]
[1756337857051,4.33805286,4516.4,4516.3,1e-08]
[1756337857276,4.79055286,4516.4,4516.3,1e-08]
[1756337859069,0.1104,4516.4,4516.3,0.30530001]
[1756337859299,2.21410708,4516.5,4516.3,0.76600001]
[1756337859504,2.648,4516.4,4516.3,0.30530001]
[1756337859805,4.86215286,4516.4,4516.3,1e-08]
[1756337860689,2.648,4516.4,4516.3,0.30530001]
[1756337860998,3.763,4516.4,4516.3,0.76600001]
[1756337861197,2.2140569,4516.6,4516.3,0.30530001]
[1756337861513,3.762,4516.5,4516.3,0.30530001]
[1756337862096,5.9761092,4516.5,4516.3,0.30530001]
[1756337862283,3.762,4516.5,4516.3,0.30530001]
[1756337862812,2.21415286,4516.4,4516.3,0.30530001]
[1756337866320,2.21415286,4516.4,4516.3,1e-08]
[1756337867715,2.98155286,4516.4,4516.3,1e-08]
[1756337868234,6.8904,4516.4,4514.8,0.02]
[1756337868433,2.21453835,4515.7,4514.8,0.02]
[1756337868730,2.21469226,4515.3,4514.8,0.02]
[1756337868932,5.52458848,4514.9,4514.8,0.02]
[1756337869224,9.61926528,4514.9,4514.8,0.02]
[1756337869417,10.07696528,4514.9,4514.8,0.02]
[1756337869818,5.84026528,4514.9,4514.8,0.02]
[1756337870017,9.62026528,4514.9,4514.8,0.02]
[1756337870219,10.07796528,4514.9,4514.8,0.02]
[1756337871428,10.42465462,4514.9,4514.8,0.02]
[1756337873733,9.96795462,4514.9,4514.8,0.02]
[1756337873901,6.18695462,4514.9,4514.8,0.02]
[1756337874101,9.96695462,4514.9,4514.8,0.02]
[1756337874702,10.42465462,4514.9,4514.8,0.02]
[1756337875002,10.42465462,4514.9,4514.8,0.024]
[1756337875225,6.64465462,4514.9,4514.8,0.024]
[1756337875428,10.42565462,4514.9,4514.8,0.024]
[1756337875706,9.96795462,4514.9,4514.8,0.024]
[1756337876308,10.42565462,4514.9,4514.8,0.024]
[1756337877126,10.42486808,4514.9,4514.8,0.024]
[1756337877321,6.18616808,4514.9,4514.8,0.024]
[1756337877504,9.96616808,4514.9,4514.8,0.024]
[1756337877707,9.76167782,4514.9,4514.8,0.024]
[1756337877906,10.42387053,4514.9,4514.8,0.024]
[1756337879027,10.42287053,4514.9,4514.8,0.024]
[1756337880049,5.87647053,4514.9,4514.8,0.024]
[1756337880250,9.75967782,4514.9,4514.8,0.024]
[1756337880548,10.21737782,4514.9,4514.8,0.024]
[1756337880770,10.42174869,4514.9,4514.8,0.024]
[1756337881110,5.98167782,4514.9,4514.8,0.024]
[1756337881458,9.75967782,4514.9,4514.8,0.024]
[1756337882126,9.44997782,4514.9,4514.8,0.024]
[1756337883426,5.67197782,4514.9,4514.8,0.024]
[1756337883633,9.75967782,4514.9,4514.8,0.024]
[1756337885053,9.75767782,4514.9,4514.8,0.024]
[1756337885411,9.75667782,4514.9,4514.8,0.024]
[1756337886150,10.21437782,4514.9,4514.8,0.024]
[1756337886456,6.64392792,4514.9,4514.8,0.024]
[1756337886663,9.96022792,4514.9,4514.8,0.024]
[1756337887253,9.96122792,4514.9,4514.8,0.024]
[1756337890743,9.96122792,4514.9,4514.3,0.004]
[1756337890744,2.21513379,4514.4,4514.3,0.004]
[1756337890924,9.19078179,4514.4,4514.3,0.004]
[1756337891126,9.61088179,4514.4,4514.3,0.004]
[1756337891346,10.06858179,4514.4,4514.3,0.004]
[1756337893432,9.61088179,4514.4,4514.3,0.004]
[1756337894624,10.41529709,4514.4,4514.3,0.004]
[1756337895408,9.95759709,4514.4,4514.3,0.004]
[1756337895813,5.87689709,4514.4,4514.3,0.293]
[1756337896068,11.34889709,4514.4,4514.3,0.7244]
[1756337896213,11.65859709,4514.4,4514.3,0.004]
[1756337896539,11.45394909,4514.4,4514.3,0.004]
[1756337896850,11.65914634,4514.4,4514.3,0.004]
[1756337898131,12.12984634,4514.4,4514.3,0.004]
[1756337898448,12.12984634,4514.4,4513.8,0.02]
[1756337898449,2.21537916,4513.9,4513.8,0.02]
[1756337898635,9.18957641,4513.9,4513.8,0.02]
[1756337898945,9.58807641,4513.9,4513.8,0.02]
[1756337899542,9.29997641,4513.9,4513.8,0.02]
[1756337900850,9.30097641,4513.9,4513.8,0.3272]
[1756337903071,9.58907641,4513.9,4513.8,0.02]
[1756337903425,9.58956754,4513.9,4513.8,0.02]
[1756337903936,9.58856754,4513.9,4513.8,0.02]
[1756337907035,9.58845705,4513.9,4513.8,0.02]
[1756337907547,9.58845521,4513.9,4513.8,0.02]
[1756337908358,10.05915521,4513.9,4513.8,0.02]
[1756337908557,9.58845521,4513.9,4513.8,0.02]
[1756337909063,10.33161375,4513.9,4513.8,0.02]
[1756337909241,10.05915521,4513.9,4513.8,0.02]
[1756337909438,5.53135521,4513.9,4513.8,0.02]
[1756337909764,9.29535521,4513.9,4513.8,0.02]
[1756337909967,9.58345521,4513.9,4513.8,0.02]
[1756337911829,9.29435521,4513.9,4513.8,0.02]
[1756337912363,9.29435521,4513.9,4513.8,1e-08]
[1756337912364,9.9292234,4513.9,4513.8,1e-08]
[1756337912550,10.3999234,4513.9,4513.8,1e-08]
[1756337913070,9.9322234,4513.9,4513.8,1e-08]
[1756337913367,9.6441234,4513.9,4513.8,0.00400001]
[1756337915162,9.9322234,4513.9,4513.8,0.00400001]
[1756337915538,6.6369234,4513.9,4513.8,0.00400001]
[1756337915874,9.9312234,4513.9,4513.8,0.00400001]
[1756337916581,5.8781234,4513.9,4513.8,0.00400001]
[1756337916772,5.8781234,4513.9,4513.8,0.73940001]
[1756337916773,0.66274424,4513.9,4513.8,0.73940001]
[1756337916967,0.31597605,4513.9,4513.8,0.73940001]
[1756337917158,6.29528831,4513.9,4513.8,0.73940001]
[1756337917355,0.31590915,4513.9,4513.8,0.73940001]
[1756337917885,0.1104,4513.9,4513.8,0.73940001]
[1756337918189,3.764,4513.9,4513.8,2.95482825]
[1756337918489,3.765,4514.1,4514.0,2.21533008]
[1756337918790,0.1104,4514.3,4514.2,5.79436926]
[1756337918948,3.8754,4514.3,4514.1,0.4282]
[1756337919154,3.8754,4514.3,4514.2,0.3072]
[1756337919403,3.8754,4514.3,4514.2,0.7354]
[1756337921088,3.8754,4514.3,4513.8,0.00400001]
[1756337921089,2.2153363,4514.0,4513.8,0.00400001]
[1756337921286,4.08000579,4513.9,4513.8,0.00400001]
[1756337921595,0.1104,4513.9,4513.8,0.00400001]
[1756337921798,3.8744,4513.9,4513.8,0.31120001]
[1756337922094,3.8744,4513.9,4513.8,0.73940001]
[1756337923885,0.1104,4513.9,4513.8,0.73940001]
[1756337924195,3.8734,4513.9,4513.8,2.95482825]
[1756337925000,1.704,4514.4,4513.8,0.73940001]
[1756337925284,3.762,4514.3,4514.2,2.21519112]
[1756337925452,0.1114,4514.8,4514.2,2.21519112]
[1756337925453,0.001,4514.8,4514.5,2.21508472]
[1756337925654,0.001,4514.8,4514.7,2.21498659]
[1756337925861,1.725,4515.8,4515.5,2.21458784]
[1756337926085,3.3424,4515.7,4515.4,2.21463603]
[1756337926254,3.3424,4515.7,4515.6,0.7354]
[1756337926964,3.6549,4515.7,4515.1,0.1104]
[1756337927180,3.6549,4515.7,4514.2,0.1104]
[1756337927181,0.1104,4515.4,4514.2,0.1104]
[1756337927490,0.1104,4514.5,4514.0,0.4396]
[1756337927667,0.1104,4514.2,4514.0,0.4396]
[1756337927865,0.1104,4514.2,4514.1,0.298]
[1756337928069,3.8764,4514.2,4514.1,0.298]
[1756337928490,2.2153702,4514.0,4513.8,0.00400001]
[1756337928690,3.8754,4513.9,4513.8,0.00400001]
[1756337930090,3.8754,4513.9,4513.8,0.30200001]
[1756337930459,6.09077916,4513.9,4513.8,0.00400001]
[1756337930990,3.8754,4513.9,4513.8,0.00400001]
[1756337931195,3.8744,4513.9,4513.8,0.30200001]
[1756337932193,6.40227916,4513.9,4513.8,0.00400001]
[1756337932397,6.83507916,4513.9,4513.8,0.00400001]
[1756337933293,7.04012039,4513.9,4513.8,0.00400001]
[1756337934799,10.3868918,4513.9,4513.8,0.00400001]
[1756337935780,5.8775918,4513.9,4513.8,0.30200001]
[1756337935985,9.6395918,4513.9,4513.8,0.00400001]
[1756337936187,9.9520918,4513.9,4513.8,0.00400001]
[1756337936666,10.3848918,4513.9,4513.8,0.00400001]
[1756337937564,10.17985057,4513.9,4513.8,0.00400001]
[1756337937771,10.38490624,4513.9,4513.8,0.00400001]
[1756337938326,10.38590624,4513.9,4513.8,0.00400001]
[1756337938470,9.95311349,4513.9,4513.8,0.00400001]
[1756337939284,9.95211349,4513.9,4513.8,0.00400001]
[1756337940406,10.38491349,4513.9,4513.8,0.00400001]
[1756337941009,9.95214907,4513.9,4513.8,0.00400001]
[1756337941212,10.38494907,4513.9,4513.8,0.00400001]
[1756337943380,10.38486828,4513.9,4513.8,0.00400001]
[1756337944599,10.38286828,4513.9,4513.8,0.00400001]
[1756337944970,10.47171328,4513.9,4513.8,0.00400001]
[1756337946472,10.12494187,4513.9,4513.8,0.00400001]
[1756337947011,10.1249758,4513.9,4513.8,0.00400001]
[1756337947606,6.3649758,4513.9,4513.8,0.00400001]
[1756337947807,9.2888308,4513.9,4513.8,0.30200001]
[1756337948108,9.6013308,4513.9,4513.8,0.00400001]
[1756337950406,9.60145627,4513.9,4513.8,0.00400001]
[1756337950916,5.53095627,4513.9,4513.8,0.00400001]
[1756337951124,9.28995627,4513.9,4513.8,0.30200001]
[1756337952108,5.53095627,4513.9,4513.8,0.30200001]
[1756337952416,9.28895627,4513.9,4513.8,0.30200001]
[1756337952721,9.28895627,4513.9,4513.8,0.74160001]
[1756337953317,9.28895627,4513.9,4513.8,0.30200001]
[1756337953807,10.03425627,4513.9,4513.8,0.00400001]
[1756337954796,5.84345627,4513.9,4513.8,0.00400001]
[1756337954997,9.28895627,4513.9,4513.8,0.30200001]
[1756337955197,9.28895627,4513.9,4513.8,0.74160001]
[1756337956245,10.03425627,4513.9,4513.8,0.00400001]
[1756337957271,9.60188115,4513.9,4513.8,0.00400001]
[1756337957403,5.84388115,4513.9,4513.8,0.00400001]
[1756337957602,9.29138115,4513.9,4513.8,0.00400001]
[1756337957943,9.58428115,4513.9,4513.8,0.00400001]
[1756337958449,10.04918115,4513.9,4513.8,0.00400001]
[1756337959017,9.58428115,4513.9,4513.8,0.00400001]
[1756337959214,9.58328115,4513.9,4513.8,0.00400001]
[1756337959927,9.58228115,4513.9,4513.8,0.00400001]
[1756337961816,9.58228115,4513.9,4513.8,1e-08]
[1756337961817,10.04718115,4513.9,4513.8,1e-08]
[1756337962345,6.28918115,4513.9,4513.8,1e-08]
[1756337962649,10.04718115,4513.9,4513.8,1e-08]
[1756337962943,10.13603015,4513.9,4513.8,1e-08]
[1756337964150,10.40860684,4513.9,4513.8,1e-08]
[1756337965262,10.40860684,4513.9,4513.4,1e-08]
[1756337965263,2.21557549,4513.5,4513.4,1e-08]
[1756337965433,7.88317748,4513.5,4513.4,1e-08]
[1756337965635,8.75137748,4513.5,4513.4,1e-08]
[1756337965840,8.28647748,4513.5,4513.4,1e-08]
[1756337966027,7.99357748,4513.5,4513.4,1e-08]
[1756337967240,8.28647748,4513.5,4513.4,1e-08]
[1756337967548,8.08087549,4513.5,4513.4,1e-08]
[1756337967757,8.28694443,4513.5,4513.4,1e-08]
[1756337968049,8.54577549,4513.5,4513.4,1e-08]